[Event "Early-Titled-Tuesday-Blitz-September-26-2023"]
[Site "Chess.com"]
[Date "2023.09.26"]
[Round "7"]
[White "DarZay"]
[Black "Darius321"]
[Result "1/2-1/2"]
[WhiteElo "2209"]
[BlackElo "2333"]
[TimeControl "180+1"]
[EndTime "9:18:53 PDT"]
[Termination "Game drawn by repetition"]

1. e4 {[%clk 0:02:56.4]} 1... e5 {[%clk 0:02:57.7]} 2. Nf3 {[%clk 0:02:55.3]}
2... Nf6 {[%clk 0:02:58]} 3. Nxe5 {[%clk 0:02:54.9]} 3... d6 {[%clk 0:02:57.9]}
4. Nf3 {[%clk 0:02:55.1]} 4... Nxe4 {[%clk 0:02:58.3]} 5. Nc3 {[%clk 0:02:54.6]}
5... Nf6 {[%clk 0:02:57.3]} 6. d4 {[%clk 0:02:51.7]} 6... d5 {[%clk 0:02:56.7]}
7. Bd3 {[%clk 0:02:51.4]} 7... Be7 {[%clk 0:02:56.2]} 8. Be3 {[%clk 0:02:51.6]}
8... O-O {[%clk 0:02:56.2]} 9. Qd2 {[%clk 0:02:52.1]} 9... Nc6 {[%clk
0:02:49.3]} 10. a3 {[%clk 0:02:48]} 10... Ng4 {[%clk 0:02:38.1]} 11. Bf4 {[%clk
0:02:40.6]} 11... Bf6 {[%clk 0:02:32.4]} 12. O-O-O {[%clk 0:02:38.4]} 12... Nxd4
{[%clk 0:02:13.7]} 13. Nxd4 {[%clk 0:02:32.8]} 13... Bxd4 {[%clk 0:02:13.8]} 14.
Bxh7+ {[%clk 0:02:23.2]} 14... Kxh7 {[%clk 0:02:11.9]} 15. Qxd4 {[%clk
0:02:23.4]} 15... c6 {[%clk 0:02:11.8]} 16. f3 {[%clk 0:02:17.2]} 16... Nf6
{[%clk 0:02:06]} 17. Bg5 {[%clk 0:02:16]} 17... Qd6 {[%clk 0:01:59.1]} 18. Qh4+
{[%clk 0:02:11.4]} 18... Kg8 {[%clk 0:01:59.1]} 19. Ne4 {[%clk 0:02:07.9]} 19...
Nxe4 {[%clk 0:01:48.9]} 20. fxe4 {[%clk 0:02:07.9]} 20... Be6 {[%clk 0:01:49.1]}
21. exd5 {[%clk 0:02:01.8]} 21... Bxd5 {[%clk 0:01:48.1]} 22. Be7 {[%clk
0:02:00.4]} 22... Qg6 {[%clk 0:01:23]} 23. Bxf8 {[%clk 0:01:59.2]} 23... Rxf8
{[%clk 0:01:23.9]} 24. g3 {[%clk 0:01:57.6]} 24... Bxh1 {[%clk 0:01:22.6]} 25.
Rxh1 {[%clk 0:01:56.8]} 25... Re8 {[%clk 0:01:20.5]} 26. Rd1 {[%clk 0:01:54.3]}
26... f6 {[%clk 0:01:13.7]} 27. Qc4+ {[%clk 0:01:53]} 27... Qf7 {[%clk
0:01:10.5]} 28. Qf4 {[%clk 0:01:43.7]} 28... Qa2 {[%clk 0:01:07.7]} 29. Rd7
{[%clk 0:01:26.8]} 29... Qa1+ {[%clk 0:01:04.2]} 30. Kd2 {[%clk 0:01:26.9]}
30... Qe1+ {[%clk 0:01:02.2]} 31. Kd3 {[%clk 0:01:27]} 31... Qd1+ {[%clk
0:00:55]} 32. Qd2 {[%clk 0:01:26.9]} 32... Qf3+ {[%clk 0:00:54.4]} 33. Kc4
{[%clk 0:01:26.4]} 33... b5+ {[%clk 0:00:47.4]} 34. Kb4 {[%clk 0:01:21.2]} 34...
Re4+ {[%clk 0:00:44.6]} 35. Rd4 {[%clk 0:01:20.6]} 35... Qg4 {[%clk 0:00:32.6]}
36. Rxe4 {[%clk 0:01:03.3]} 36... Qxe4+ {[%clk 0:00:33.5]} 37. Kc5 {[%clk
0:01:03.6]} 37... Qc4+ {[%clk 0:00:27.1]} 38. Kd6 {[%clk 0:01:03.7]} 38... Kf7
{[%clk 0:00:26.5]} 39. Qe3 {[%clk 0:00:52.5]} 39... Qxc2 {[%clk 0:00:19.6]} 40.
Qe6+ {[%clk 0:00:38.9]} 40... Kg6 {[%clk 0:00:19.4]} 41. Qg4+ {[%clk 0:00:38.7]}
41... Kf7 {[%clk 0:00:19.2]} 42. Qe6+ {[%clk 0:00:36.4]} 42... Kg6 {[%clk
0:00:19.4]} 43. Qg4+ {[%clk 0:00:36.5]} 43... Kh6 {[%clk 0:00:19.2]} 44. Qh4+
{[%clk 0:00:36.6]} 44... Kg6 {[%clk 0:00:18.3]} 45. Qg4+ {[%clk 0:00:37]}
1/2-1/2

[Event "Early-Titled-Tuesday-Blitz-September-26-2023"]
[Site "Chess.com"]
[Date "2023.09.26"]
[Round "7"]
[White "goodluck06"]
[Black "ferdipy"]
[Result "1-0"]
[WhiteElo "2671"]
[BlackElo "2312"]
[TimeControl "180+1"]
[EndTime "9:18:57 PDT"]
[Termination "goodluck06 won on time"]

1. Nf3 {[%clk 0:03:00.9]} 1... e6 {[%clk 0:01:28.4]} 2. g3 {[%clk 0:02:58.2]}
2... d5 {[%clk 0:01:29.3]} 3. Bg2 {[%clk 0:02:58.8]} 3... Nf6 {[%clk 0:01:30.2]}
4. O-O {[%clk 0:02:59.2]} 4... Be7 {[%clk 0:01:30.8]} 5. c4 {[%clk 0:02:57.9]}
5... O-O {[%clk 0:01:31.7]} 6. b3 {[%clk 0:02:57.6]} 6... c6 {[%clk 0:01:32.4]}
7. Bb2 {[%clk 0:02:57.5]} 7... b6 {[%clk 0:01:33.1]} 8. d4 {[%clk 0:02:57.8]}
8... Nbd7 {[%clk 0:01:33.6]} 9. Nc3 {[%clk 0:02:58.2]} 9... Bb7 {[%clk
0:01:34.2]} 10. Nd2 {[%clk 0:02:57.9]} 10... Rc8 {[%clk 0:01:31.2]} 11. e4
{[%clk 0:02:57.9]} 11... dxe4 {[%clk 0:01:27.8]} 12. Ndxe4 {[%clk 0:02:57.9]}
12... Nxe4 {[%clk 0:01:28.4]} 13. Nxe4 {[%clk 0:02:55.5]} 13... Nf6 {[%clk
0:01:29]} 14. Re1 {[%clk 0:02:46.7]} 14... Nxe4 {[%clk 0:01:27.3]} 15. Bxe4
{[%clk 0:02:46.3]} 15... Bf6 {[%clk 0:01:26.1]} 16. Qd3 {[%clk 0:02:42.5]} 16...
g6 {[%clk 0:01:25.8]} 17. Rad1 {[%clk 0:02:43]} 17... Rc7 {[%clk 0:01:25.2]} 18.
Qe3 {[%clk 0:02:03]} 18... Rd7 {[%clk 0:00:59.8]} 19. Rd2 {[%clk 0:01:33.6]}
19... c5 {[%clk 0:00:41.1]} 20. Bxb7 {[%clk 0:01:32.3]} 20... cxd4 {[%clk
0:00:40.1]} 21. Qf3 {[%clk 0:01:31.3]} 21... Bg7 {[%clk 0:00:34.1]} 22. Ba3
{[%clk 0:01:30]} 22... Re8 {[%clk 0:00:12]} 23. Bc6 {[%clk 0:01:29.6]} 23... e5
{[%clk 0:00:12.6]} 24. Bxd7 {[%clk 0:01:29.2]} 24... Qxd7 {[%clk 0:00:13.5]} 25.
Qd5 {[%clk 0:01:23.3]} 25... Qxd5 {[%clk 0:00:11.2]} 26. cxd5 {[%clk 0:01:23.1]}
26... Rd8 {[%clk 0:00:11.9]} 27. d6 {[%clk 0:01:22]} 27... f5 {[%clk 0:00:11.6]}
28. Rc1 {[%clk 0:01:10.7]} 28... Kf7 {[%clk 0:00:11.2]} 29. Rc7+ {[%clk
0:01:10.7]} 29... Kf6 {[%clk 0:00:10.7]} 30. Rxa7 {[%clk 0:01:06.4]} 30... Bh6
{[%clk 0:00:10.2]} 31. Rd1 {[%clk 0:01:05.6]} 31... Ke6 {[%clk 0:00:09.2]} 32.
Rxh7 {[%clk 0:01:04.8]} 32... Bg5 {[%clk 0:00:07.7]} 33. Rg7 {[%clk 0:01:01.7]}
33... Kf6 {[%clk 0:00:07.2]} 34. Rc7 {[%clk 0:01:01.7]} 34... Ke6 {[%clk
0:00:06.1]} 35. h4 {[%clk 0:01:01]} 35... Bf6 {[%clk 0:00:06.2]} 36. Bb4 {[%clk
0:00:53.5]} 36... e4 {[%clk 0:00:05.6]} 37. a4 {[%clk 0:00:51.9]} 37... b5
{[%clk 0:00:02.8]} 38. a5 {[%clk 0:00:51.4]} 38... Rb8 {[%clk 0:00:03.7]} 39. a6
{[%clk 0:00:51.4]} 39... Ra8 {[%clk 0:00:03.8]} 40. a7 {[%clk 0:00:51.7]} 40...
Be5 {[%clk 0:00:04.3]} 41. Re7+ {[%clk 0:00:46.8]} 41... Kd5 {[%clk 0:00:05]}
42. d7 {[%clk 0:00:47]} 1-0

[Event "Early-Titled-Tuesday-Blitz-September-26-2023"]
[Site "Chess.com"]
[Date "2023.09.26"]
[Round "7"]
[White "AradNazari"]
[Black "Arteler"]
[Result "1-0"]
[WhiteElo "2799"]
[BlackElo "2583"]
[TimeControl "180+1"]
[EndTime "9:19:00 PDT"]
[Termination "AradNazari won by resignation"]

1. e4 {[%clk 0:03:00.9]} 1... e6 {[%clk 0:02:55]} 2. d4 {[%clk 0:03:00.4]} 2...
d5 {[%clk 0:02:55.4]} 3. e5 {[%clk 0:03:01.2]} 3... c5 {[%clk 0:02:55.8]} 4. c3
{[%clk 0:03:02]} 4... Qb6 {[%clk 0:02:54.4]} 5. Nf3 {[%clk 0:03:02]} 5... Nc6
{[%clk 0:02:54.8]} 6. a3 {[%clk 0:03:02.2]} 6... Nh6 {[%clk 0:02:55]} 7. Bd3
{[%clk 0:02:56.1]} 7... cxd4 {[%clk 0:02:52.2]} 8. O-O {[%clk 0:02:55.7]} 8...
Be7 {[%clk 0:02:46.2]} 9. b4 {[%clk 0:02:56.1]} 9... Nf5 {[%clk 0:02:42.7]} 10.
Bb2 {[%clk 0:02:55.9]} 10... dxc3 {[%clk 0:02:40.2]} 11. Nxc3 {[%clk 0:02:56.1]}
11... Qd8 {[%clk 0:02:39.9]} 12. Bxf5 {[%clk 0:02:54.8]} 12... exf5 {[%clk
0:02:40.3]} 13. Nxd5 {[%clk 0:02:55.5]} 13... Be6 {[%clk 0:02:35.7]} 14. Nxe7
{[%clk 0:02:47.6]} 14... Qxe7 {[%clk 0:02:36.6]} 15. b5 {[%clk 0:02:39.9]} 15...
Rd8 {[%clk 0:02:19.1]} 16. Qa4 {[%clk 0:02:31.6]} 16... Nb8 {[%clk 0:02:16.9]}
17. Qxa7 {[%clk 0:02:21.4]} 17... O-O {[%clk 0:02:15.6]} 18. a4 {[%clk
0:02:20.6]} 18... Rfe8 {[%clk 0:01:37.3]} 19. Ba3 {[%clk 0:02:15.9]} 19... Qd7
{[%clk 0:01:37.6]} 20. Bd6 {[%clk 0:02:16]} 20... Bd5 {[%clk 0:01:38.2]} 21. Ra3
{[%clk 0:01:57.3]} 21... f6 {[%clk 0:01:34.4]} 22. Bxb8 {[%clk 0:01:56.7]} 22...
Rxb8 {[%clk 0:01:31.4]} 23. exf6 {[%clk 0:01:57.3]} 23... gxf6 {[%clk
0:01:29.9]} 24. Qd4 {[%clk 0:01:52.1]} 24... Qf7 {[%clk 0:01:27.3]} 25. Qf4
{[%clk 0:01:45.6]} 25... Qh5 {[%clk 0:00:59.5]} 26. Nh4 {[%clk 0:01:40.5]} 26...
Re5 {[%clk 0:00:59.4]} 27. Rg3+ {[%clk 0:01:36.9]} 27... Kf7 {[%clk 0:00:56.6]}
28. Nf3 {[%clk 0:01:28.7]} 28... Bxf3 {[%clk 0:00:52.2]} 29. Rxf3 {[%clk
0:01:29.6]} 29... Rbe8 {[%clk 0:00:44.2]} 30. Qc4+ {[%clk 0:01:28]} 30... Kg7
{[%clk 0:00:35.8]} 31. h3 {[%clk 0:01:19.3]} 31... Kh8 {[%clk 0:00:35.6]} 32.
Rg3 {[%clk 0:01:14.9]} 32... R5e7 {[%clk 0:00:18]} 33. Qd4 {[%clk 0:01:08.4]}
33... Qf7 {[%clk 0:00:17.4]} 34. Rd1 {[%clk 0:00:58.3]} 34... Re4 {[%clk
0:00:17.7]} 35. Qd7 {[%clk 0:00:45.6]} 35... Qxd7 {[%clk 0:00:14.6]} 36. Rxd7
{[%clk 0:00:46.5]} 36... Rg8 {[%clk 0:00:15.1]} 37. Rxg8+ {[%clk 0:00:34.9]}
37... Kxg8 {[%clk 0:00:16]} 38. a5 {[%clk 0:00:34.6]} 38... Ra4 {[%clk
0:00:16.5]} 39. a6 {[%clk 0:00:25.9]} 39... bxa6 {[%clk 0:00:16.4]} 40. b6
{[%clk 0:00:26.6]} 1-0

[Event "Early-Titled-Tuesday-Blitz-September-26-2023"]
[Site "Chess.com"]
[Date "2023.09.26"]
[Round "7"]
[White "MikeSailer"]
[Black "JoliyRoger"]
[Result "0-1"]
[WhiteElo "2222"]
[BlackElo "2509"]
[TimeControl "180+1"]
[EndTime "9:19:01 PDT"]
[Termination "JoliyRoger won on time"]

1. d4 {[%clk 0:02:53.6]} 1... Nf6 {[%clk 0:02:58.4]} 2. Nc3 {[%clk 0:02:53.5]}
2... d5 {[%clk 0:02:57.8]} 3. Bf4 {[%clk 0:02:52.3]} 3... c6 {[%clk 0:02:56.7]}
4. Nf3 {[%clk 0:02:51.3]} 4... Bf5 {[%clk 0:02:57.1]} 5. e3 {[%clk 0:02:50.1]}
5... e6 {[%clk 0:02:57.5]} 6. Ne5 {[%clk 0:02:50.4]} 6... Bd6 {[%clk 0:02:53.2]}
7. g4 {[%clk 0:02:19.9]} 7... Bxe5 {[%clk 0:02:22.5]} 8. dxe5 {[%clk 0:02:18.1]}
8... Nxg4 {[%clk 0:02:18.6]} 9. h3 {[%clk 0:01:57.7]} 9... Nh6 {[%clk
0:02:17.2]} 10. Bxh6 {[%clk 0:01:58.2]} 10... gxh6 {[%clk 0:02:17.8]} 11. Qh5
{[%clk 0:01:58.5]} 11... Qg5 {[%clk 0:02:18.3]} 12. Be2 {[%clk 0:01:47.1]} 12...
Qxh5 {[%clk 0:02:10.6]} 13. Bxh5 {[%clk 0:01:46.9]} 13... Bxc2 {[%clk
0:02:11.2]} 14. Rg1 {[%clk 0:01:32.8]} 14... Bg6 {[%clk 0:02:11.1]} 15. Bf3
{[%clk 0:01:23.8]} 15... Nd7 {[%clk 0:02:10.8]} 16. h4 {[%clk 0:01:09.9]} 16...
Nxe5 {[%clk 0:01:50.4]} 17. Be2 {[%clk 0:01:10.8]} 17... h5 {[%clk 0:01:48.4]}
18. f4 {[%clk 0:01:05.6]} 18... Nd3+ {[%clk 0:01:17.9]} 19. Bxd3 {[%clk
0:00:43.1]} 19... Bxd3 {[%clk 0:01:17.2]} 20. Kd2 {[%clk 0:00:42.6]} 20... Bg6
{[%clk 0:01:17.3]} 21. Rae1 {[%clk 0:00:39.3]} 21... O-O-O {[%clk 0:01:15.7]}
22. Kc1 {[%clk 0:00:39.9]} 22... d4 {[%clk 0:01:08.5]} 23. exd4 {[%clk
0:00:28.3]} 23... Rxd4 {[%clk 0:01:08.7]} 24. Ref1 {[%clk 0:00:28.2]} 24... Rhd8
{[%clk 0:01:07]} 25. Rf2 {[%clk 0:00:24.6]} 25... Kc7 {[%clk 0:01:05.5]} 26. Rg5
{[%clk 0:00:14.2]} 26... b6 {[%clk 0:00:59.6]} 27. Re5 {[%clk 0:00:09.5]} 27...
a6 {[%clk 0:00:48.6]} 28. Rg5 {[%clk 0:00:09.5]} 28... b5 {[%clk 0:00:45.3]} 29.
Rg3 {[%clk 0:00:10.2]} 29... Rd3 {[%clk 0:00:44.9]} 30. Rg5 {[%clk 0:00:09.6]}
30... Rh3 {[%clk 0:00:44.7]} 31. f5 {[%clk 0:00:09.2]} 31... Bxf5 {[%clk
0:00:43.8]} 32. Rxh5 {[%clk 0:00:09.7]} 32... Bg6 {[%clk 0:00:44.4]} 33. Rh6
{[%clk 0:00:07.6]} 33... Rd4 {[%clk 0:00:42.7]} 34. h5 {[%clk 0:00:07.8]} 34...
Rxh5 {[%clk 0:00:42]} 35. Rxh5 {[%clk 0:00:07.5]} 35... Bxh5 {[%clk 0:00:42.6]}
0-1

[Event "Early-Titled-Tuesday-Blitz-September-26-2023"]
[Site "Chess.com"]
[Date "2023.09.26"]
[Round "7"]
[White "ARMQUEEN"]
[Black "Doomfist26"]
[Result "1-0"]
[WhiteElo "2451"]
[BlackElo "2591"]
[TimeControl "180+1"]
[EndTime "9:19:05 PDT"]
[Termination "ARMQUEEN won by resignation"]

1. e4 {[%clk 0:03:00.9]} 1... c5 {[%clk 0:02:57.8]} 2. Nc3 {[%clk 0:02:59.6]}
2... Nc6 {[%clk 0:02:56.8]} 3. Bb5 {[%clk 0:02:57]} 3... Nf6 {[%clk 0:02:55]} 4.
Bxc6 {[%clk 0:02:54.4]} 4... bxc6 {[%clk 0:02:52]} 5. d3 {[%clk 0:02:30.7]} 5...
d5 {[%clk 0:02:47.8]} 6. Qe2 {[%clk 0:02:24.6]} 6... e6 {[%clk 0:02:40.3]} 7. f4
{[%clk 0:02:14.3]} 7... Be7 {[%clk 0:02:38.5]} 8. Nf3 {[%clk 0:02:14]} 8... O-O
{[%clk 0:02:38.5]} 9. O-O {[%clk 0:02:07.6]} 9... Ba6 {[%clk 0:02:37.5]} 10. b3
{[%clk 0:02:06.9]} 10... Qb6 {[%clk 0:02:12.6]} 11. Kh1 {[%clk 0:02:04.5]} 11...
Rfd8 {[%clk 0:02:00.2]} 12. f5 {[%clk 0:01:56.7]} 12... exf5 {[%clk 0:01:42.4]}
13. exf5 {[%clk 0:01:55.9]} 13... Bd6 {[%clk 0:01:42.7]} 14. Na4 {[%clk
0:01:51.9]} 14... Qc7 {[%clk 0:01:39.7]} 15. Ba3 {[%clk 0:01:49.3]} 15... Re8
{[%clk 0:01:38.3]} 16. Qf2 {[%clk 0:01:42]} 16... Ng4 {[%clk 0:01:38.1]} 17. Qh4
{[%clk 0:01:42.1]} 17... Ne3 {[%clk 0:01:38.7]} 18. f6 {[%clk 0:01:17.2]} 18...
g6 {[%clk 0:01:25.2]} 19. Rf2 {[%clk 0:00:58.9]} 19... Nf5 {[%clk 0:01:19.4]}
20. Qh3 {[%clk 0:00:58.4]} 20... Re3 {[%clk 0:00:56.7]} 21. Bxc5 {[%clk
0:00:52.7]} 21... Bxc5 {[%clk 0:00:37.2]} 22. Nxc5 {[%clk 0:00:47.7]} 22... Bc8
{[%clk 0:00:37.3]} 23. g4 {[%clk 0:00:47.3]} 23... Qd6 {[%clk 0:00:17.4]} 24.
gxf5 {[%clk 0:00:38.7]} 24... Qxc5 {[%clk 0:00:17.8]} 25. Qh6 {[%clk 0:00:30.5]}
25... Qf8 {[%clk 0:00:17.8]} 26. Qxe3 {[%clk 0:00:30.6]} 26... Bxf5 {[%clk
0:00:17]} 27. Re1 {[%clk 0:00:27]} 27... Qd6 {[%clk 0:00:10.9]} 28. Nd4 {[%clk
0:00:23.2]} 28... Bd7 {[%clk 0:00:10.8]} 29. Qe7 {[%clk 0:00:21.9]} 29... Qxe7
{[%clk 0:00:10.3]} 30. Rxe7 {[%clk 0:00:19.3]} 30... Bg4 {[%clk 0:00:10.4]} 31.
Kg2 {[%clk 0:00:18.2]} 31... h5 {[%clk 0:00:11.3]} 32. Nxc6 {[%clk 0:00:17.6]}
32... Rc8 {[%clk 0:00:11.2]} 33. Ne5 {[%clk 0:00:16]} 33... Bf5 {[%clk
0:00:10.9]} 34. Nxf7 {[%clk 0:00:15.3]} 34... Kf8 {[%clk 0:00:10.8]} 35. Nd6
{[%clk 0:00:15.3]} 1-0

[Event "Early-Titled-Tuesday-Blitz-September-26-2023"]
[Site "Chess.com"]
[Date "2023.09.26"]
[Round "7"]
[White "leejunhyeok"]
[Black "imdvb6307"]
[Result "0-1"]
[WhiteElo "2641"]
[BlackElo "2486"]
[TimeControl "180+1"]
[EndTime "9:19:06 PDT"]
[Termination "imdvb6307 won by resignation"]

1. e4 {[%clk 0:02:58]} 1... Nc6 {[%clk 0:03:00.1]} 2. Nf3 {[%clk 0:02:57.3]}
2... d6 {[%clk 0:03:00.2]} 3. d4 {[%clk 0:02:57.5]} 3... Nf6 {[%clk 0:03:00.4]}
4. Nc3 {[%clk 0:02:58.2]} 4... Bg4 {[%clk 0:02:59.8]} 5. Bb5 {[%clk 0:02:57.7]}
5... a6 {[%clk 0:02:59]} 6. Bxc6+ {[%clk 0:02:57.3]} 6... bxc6 {[%clk
0:02:59.5]} 7. h3 {[%clk 0:02:55.2]} 7... Bh5 {[%clk 0:02:59.8]} 8. g4 {[%clk
0:02:54.3]} 8... Bg6 {[%clk 0:02:59.5]} 9. Qe2 {[%clk 0:02:54.8]} 9... e6 {[%clk
0:02:59.5]} 10. h4 {[%clk 0:02:54.5]} 10... h5 {[%clk 0:02:52.2]} 11. g5 {[%clk
0:02:54.6]} 11... Nd7 {[%clk 0:02:41.5]} 12. Be3 {[%clk 0:02:47.1]} 12... Qb8
{[%clk 0:02:38.9]} 13. O-O-O {[%clk 0:02:46.6]} 13... d5 {[%clk 0:02:23.9]} 14.
Bf4 {[%clk 0:02:18.5]} 14... Qb7 {[%clk 0:02:23.3]} 15. Ne5 {[%clk 0:02:01.1]}
15... Nxe5 {[%clk 0:02:12.3]} 16. Bxe5 {[%clk 0:02:02]} 16... a5 {[%clk
0:01:50.5]} 17. exd5 {[%clk 0:01:41.4]} 17... cxd5 {[%clk 0:01:50.3]} 18. Qb5+
{[%clk 0:01:34.9]} 18... Qxb5 {[%clk 0:01:50.4]} 19. Nxb5 {[%clk 0:01:35.8]}
19... Kd7 {[%clk 0:01:50.5]} 20. Rh3 {[%clk 0:01:25.7]} 20... c6 {[%clk
0:01:47.6]} 21. Nc3 {[%clk 0:01:24.9]} 21... a4 {[%clk 0:01:20.5]} 22. a3 {[%clk
0:01:24.6]} 22... Rg8 {[%clk 0:01:18.9]} 23. Na2 {[%clk 0:01:22.5]} 23... Be7
{[%clk 0:01:15.2]} 24. Nb4 {[%clk 0:01:21.4]} 24... f6 {[%clk 0:01:15.1]} 25.
Bf4 {[%clk 0:01:21]} 25... fxg5 {[%clk 0:01:04.9]} 26. Bxg5 {[%clk 0:01:18.6]}
26... Bxg5+ {[%clk 0:01:04.9]} 27. hxg5 {[%clk 0:01:19.5]} 27... Rgf8 {[%clk
0:01:05.2]} 28. Nd3 {[%clk 0:01:15]} 28... Bxd3 {[%clk 0:01:05]} 29. Rdxd3
{[%clk 0:01:15.9]} 29... g6 {[%clk 0:01:05.5]} 30. Rdf3 {[%clk 0:01:13.2]} 30...
Rf5 {[%clk 0:00:59.9]} 31. Rxf5 {[%clk 0:01:11.8]} 31... exf5 {[%clk 0:01:00.3]}
32. Re3 {[%clk 0:01:09.7]} 32... Re8 {[%clk 0:00:59.4]} 33. Kd2 {[%clk
0:00:51.7]} 33... f4 {[%clk 0:00:41.5]} 34. Rxe8 {[%clk 0:00:48.4]} 34... Kxe8
{[%clk 0:00:40.7]} 35. Ke2 {[%clk 0:00:48.6]} 35... h4 {[%clk 0:00:40.9]} 36.
Kf3 {[%clk 0:00:48.7]} 36... h3 {[%clk 0:00:40.9]} 37. b3 {[%clk 0:00:34]} 37...
axb3 {[%clk 0:00:41]} 38. cxb3 {[%clk 0:00:34.4]} 38... Kd7 {[%clk 0:00:41.4]}
39. a4 {[%clk 0:00:15.3]} 39... c5 {[%clk 0:00:32.9]} 40. dxc5 {[%clk
0:00:13.7]} 40... d4 {[%clk 0:00:33.4]} 41. b4 {[%clk 0:00:13]} 41... d3 {[%clk
0:00:33.6]} 42. b5 {[%clk 0:00:13.6]} 42... d2 {[%clk 0:00:33.8]} 43. c6+ {[%clk
0:00:14.2]} 43... Kd6 {[%clk 0:00:33.1]} 0-1

[Event "Early-Titled-Tuesday-Blitz-September-26-2023"]
[Site "Chess.com"]
[Date "2023.09.26"]
[Round "7"]
[White "Zohid6"]
[Black "Msb2"]
[Result "0-1"]
[WhiteElo "2782"]
[BlackElo "3084"]
[TimeControl "180+1"]
[EndTime "9:19:09 PDT"]
[Termination "Msb2 won by resignation"]

1. d4 {[%clk 0:02:53.3]} 1... d5 {[%clk 0:03:00.1]} 2. Nc3 {[%clk 0:02:53.1]}
2... e6 {[%clk 0:03:00.3]} 3. Bf4 {[%clk 0:02:52.6]} 3... c5 {[%clk 0:02:59.3]}
4. e3 {[%clk 0:02:52.7]} 4... a6 {[%clk 0:02:59.4]} 5. Nf3 {[%clk 0:02:52.9]}
5... Nc6 {[%clk 0:03:00.1]} 6. Bd3 {[%clk 0:02:51.3]} 6... c4 {[%clk 0:03:00.4]}
7. Be2 {[%clk 0:02:51.4]} 7... Bb4 {[%clk 0:03:01.1]} 8. O-O {[%clk 0:02:51.5]}
8... Bxc3 {[%clk 0:03:00.7]} 9. bxc3 {[%clk 0:02:52.4]} 9... Nf6 {[%clk
0:03:01.4]} 10. a4 {[%clk 0:02:51.5]} 10... Ne4 {[%clk 0:03:00.7]} 11. Ra3
{[%clk 0:02:51.7]} 11... Qe7 {[%clk 0:02:58.3]} 12. Qa1 {[%clk 0:02:50.2]} 12...
O-O {[%clk 0:02:58.2]} 13. Rb1 {[%clk 0:02:49.3]} 13... g5 {[%clk 0:02:45]} 14.
Bg3 {[%clk 0:02:47.7]} 14... h5 {[%clk 0:02:45.4]} 15. h4 {[%clk 0:02:40.9]}
15... g4 {[%clk 0:02:36.7]} 16. Nh2 {[%clk 0:02:31.9]} 16... Nxg3 {[%clk
0:02:36.4]} 17. fxg3 {[%clk 0:02:32.8]} 17... e5 {[%clk 0:02:35.4]} 18. Nf1
{[%clk 0:02:31.3]} 18... Bf5 {[%clk 0:02:30.5]} 19. Ra2 {[%clk 0:02:31.2]} 19...
Rfe8 {[%clk 0:02:15.6]} 20. Rab2 {[%clk 0:02:28.4]} 20... b5 {[%clk 0:02:15.7]}
21. Rd1 {[%clk 0:02:13.3]} 21... exd4 {[%clk 0:02:05.8]} 22. cxd4 {[%clk
0:02:12.6]} 22... c3 {[%clk 0:02:06.5]} 23. Rb3 {[%clk 0:02:02.1]} 23... Bxc2
{[%clk 0:02:01.1]} 24. Qxc3 {[%clk 0:02:01.5]} 24... Bxd1 {[%clk 0:01:59.5]} 25.
Bxd1 {[%clk 0:02:02.4]} 25... bxa4 {[%clk 0:01:57.5]} 26. Rb6 {[%clk 0:01:52.3]}
26... Na7 {[%clk 0:01:48.5]} 27. Bxa4 {[%clk 0:01:50.9]} 27... Nb5 {[%clk
0:01:49]} 28. Qd3 {[%clk 0:01:50.2]} 28... Qe4 {[%clk 0:01:43.7]} 29. Qd2 {[%clk
0:01:49.7]} 29... Re6 {[%clk 0:01:29.2]} 30. Rb7 {[%clk 0:01:39.9]} 30... Rc8
{[%clk 0:01:22.8]} 31. Kh2 {[%clk 0:01:24.3]} 31... Nd6 {[%clk 0:01:20.3]} 32.
Ra7 {[%clk 0:01:04.2]} 32... Rf6 {[%clk 0:01:19.6]} 33. Qe2 {[%clk 0:00:56.1]}
33... Nf5 {[%clk 0:01:14.7]} 34. Nd2 {[%clk 0:00:47.4]} 34... Qxe3 {[%clk
0:01:13.4]} 35. Qxe3 {[%clk 0:00:37]} 35... Nxe3 {[%clk 0:01:14.3]} 36. Re7
{[%clk 0:00:33.1]} 36... Nf1+ {[%clk 0:01:09]} 37. Nxf1 {[%clk 0:00:32.9]} 37...
Rxf1 {[%clk 0:01:09.9]} 38. Bc6 {[%clk 0:00:33.8]} 38... a5 {[%clk 0:00:56.8]}
39. Ra7 {[%clk 0:00:31.8]} 39... Rb8 {[%clk 0:00:50.8]} 40. Bb5 {[%clk
0:00:29.1]} 40... Rd1 {[%clk 0:00:43]} 41. Rxa5 {[%clk 0:00:25]} 41... Rxd4
{[%clk 0:00:42.6]} 42. Bc6 {[%clk 0:00:19.9]} 42... Rd8 {[%clk 0:00:40.1]} 43.
Kh1 {[%clk 0:00:18.5]} 43... Kg7 {[%clk 0:00:39.9]} 44. Kg1 {[%clk 0:00:18.6]}
44... Rd6 {[%clk 0:00:40.4]} 45. Rc5 {[%clk 0:00:18.2]} 45... Rc4 {[%clk
0:00:38.6]} 0-1